bitfinex/quotes_BTCUSD_20240911
["timestamp","ask_amount","ask_price","bid_price","bid_amount"]
[1726050381219,0.000819,56547.0,56542.0,0.52965618]
[1726050381939,0.000819,56547.0,56546.0,0.611141]
[1726050382616,0.000819,56547.0,56546.0,0.964835]
[1726050382835,0.000819,56547.0,56546.0,1.49446918]
[1726050383058,0.000819,56547.0,56546.0,1.97189518]
[1726050387328,0.000819,56547.0,56546.0,2.35558918]
[1726050387555,0.0021474,56559.0,56553.0,0.353645]
[1726050387806,0.176834,56551.0,56547.0,0.176843]
[1726050388044,0.353659,56552.0,56543.0,0.530564]
[1726050388270,0.176852,56545.0,56538.0,0.353742]
[1726050388494,0.176852,56545.0,56536.0,0.0816]
[1726050388495,0.0631,56551.0,56540.0,0.477426]
[1726050388762,0.0631,56551.0,56550.0,0.530503]
[1726050388981,0.0021474,56559.0,56550.0,0.65336618]
[1726050389198,0.0021474,56559.0,56553.0,0.176823]
[1726050389540,0.0021474,56559.0,56551.0,0.17594018]
[1726050389541,0.176816,56556.0,56551.0,0.35276818]
[1726050389672,0.02771425,56557.0,56553.0,0.22026032]
[1726050389897,0.02771425,56557.0,56551.0,0.52960118]
[1726050390114,0.1789534,56559.0,56555.0,0.176818]
[1726050390361,0.17681,56558.0,56551.0,0.52960118]
[1726050390609,0.0021474,56559.0,56552.0,0.176827]
[1726050390610,0.176813,56557.0,56552.0,0.176827]
[1726050390844,0.0021474,56559.0,56551.0,0.17594018]
[1726050391055,0.17681,56558.0,56553.0,0.176822]
[1726050391753,0.17682,56555.0,56551.0,0.35277018]
[1726050391997,0.176823,56554.0,56549.0,0.176837]
[1726050392220,0.04557504,56558.0,56547.0,0.176843]
[1726050392438,0.176825,56553.0,56548.0,0.176839]
[1726050392659,0.176828,56552.0,56548.0,0.176839]
[1726050392885,0.176828,56552.0,56544.0,0.353706]
[1726050392886,0.176824,56554.0,56541.0,0.0626]
[1726050393105,0.027715,56552.0,56547.0,0.176842]
[1726050393584,0.027715,56552.0,56540.0,0.0755]
[1726050393585,0.1417,56551.0,56539.0,0.05270786]
[1726050393587,0.353712,56544.0,56537.0,0.176872]
[1726050393827,0.353693,56547.0,56535.0,0.001636]
[1726050394045,0.530634,56536.0,56535.0,0.001636]
[1726050394723,0.176874,56538.0,56535.0,0.001636]
[1726050394934,0.353736,56540.0,56535.0,0.001636]
[1726050395147,0.176878,56537.0,56535.0,0.001636]
[1726050395357,0.353745,56538.0,56535.0,0.001636]
[1726050395575,0.453718,56543.0,56535.0,0.001636]
[1726050395576,0.530634,56536.0,56535.0,0.001636]
[1726050396682,0.88439,56536.0,56535.0,0.001636]
[1726050396895,0.630634,56536.0,56535.0,0.001636]
[1726050397112,0.98439,56536.0,56535.0,0.001636]
[1726050397797,0.630634,56536.0,56535.0,0.001636]
[1726050398047,0.1,56536.0,56535.0,0.001636]
[1726050398277,0.176878,56536.0,56535.0,0.001636]
[1726050398491,0.276878,56536.0,56535.0,0.001636]
[1726050398925,0.630634,56536.0,56535.0,0.001636]
[1726050399160,0.1,56536.0,56535.0,0.355399]
[1726050399405,0.1,56536.0,56535.0,0.001636]
[1726050399626,0.02772367,56537.0,56535.0,0.001636]
[1726050399937,0.02772367,56537.0,56536.0,0.71011146]
[1726050400108,0.000818,56556.0,56536.0,0.71011146]
[1726050400109,0.176832,56551.0,56546.0,0.176845]
[1726050400341,0.52782518,56549.0,56544.0,0.353705]
[1726050400565,0.000818,56556.0,56545.0,0.00353671]
[1726050400780,0.176838,56549.0,56545.0,0.00353671]
[1726050401011,0.353646,56554.0,56547.0,0.176842]
[1726050401262,0.176829,56552.0,56547.0,0.176842]
[1726050401479,0.000818,56556.0,56546.0,0.353691]
[1726050401692,0.176819,56555.0,56551.0,0.17683]
[1726050401905,0.176822,56554.0,56548.0,0.353679]
[1726050402119,0.176821,56555.0,56549.0,0.176835]
[1726050402342,0.000818,56556.0,56548.0,0.52961918]
[1726050402585,0.000818,56556.0,56548.0,0.17594018]
[1726050402802,0.000818,56556.0,56551.0,0.35366]
[1726050402948,0.000818,56556.0,56553.0,0.176823]
[1726050403371,0.000818,56556.0,56551.0,0.35366]
[1726050403372,0.000818,56556.0,56549.0,0.25214018]
[1726050403790,0.000818,56556.0,56550.0,0.00353617]
[1726050404167,0.000818,56556.0,56549.0,0.25214018]
[1726050404168,0.000818,56556.0,56552.0,0.0606]
[1726050404404,0.176827,56553.0,56545.0,0.0643]
[1726050404661,0.176825,56553.0,56546.0,0.17594018]
[1726050405167,0.000818,56556.0,56546.0,0.17594018]
[1726050405412,0.000818,56556.0,56549.0,0.176836]
[1726050405648,0.000818,56556.0,56550.0,0.45387965]
[1726050405891,0.000818,56556.0,56551.0,0.09844007]
[1726050406111,0.000818,56556.0,56552.0,0.17594018]
[1726050406805,0.000818,56556.0,56555.0,0.27793947]
[1726050407064,0.000818,56556.0,56555.0,0.17594018]
[1726050407493,0.177633,56556.0,56553.0,0.0764]
[1726050407716,0.000818,56556.0,56553.0,0.0764]
[1726050407926,0.176822,56554.0,56553.0,0.0764]
[1726050408145,0.000818,56556.0,56550.0,0.27793947]
[1726050408363,0.000818,56556.0,56551.0,0.17594018]
[1726050408845,0.000818,56556.0,56551.0,0.45387965]
[1726050409113,0.354452,56556.0,56551.0,0.17594018]
[1726050409322,0.176828,56552.0,56551.0,0.17594018]
[1726050409532,0.176826,56553.0,56548.0,0.0786]
[1726050409751,0.000818,56556.0,56549.0,0.17947656]
[1726050409961,0.000818,56556.0,56551.0,0.27793947]
[1726050410175,0.000818,56556.0,56552.0,0.17594018]
[1726050410409,0.000818,56556.0,56552.0,0.17947608]
[1726050410623,0.000818,56556.0,56552.0,0.17594018]
[1726050410838,0.000818,56556.0,56553.0,0.08075436]
[1726050411051,0.000818,56556.0,56554.0,0.17594018]
[1726050411473,0.000818,56556.0,56554.0,0.35276118]
[1726050412100,0.000818,56556.0,56554.0,0.17594018]
[1726050412979,0.353641,56555.0,56548.0,0.0930536]
[1726050413183,0.176822,56554.0,56549.0,0.35277718]
[1726050413818,0.176826,56553.0,56549.0,0.17594018]
[1726050414225,0.176829,56552.0,56549.0,0.17594018]
[1726050414432,0.02771452,56553.0,56549.0,0.17594018]
[1726050414650,0.02771452,56553.0,56549.0,0.35277618]
[1726050415067,0.02771452,56553.0,56550.0,0.06323516]
[1726050415282,0.02771452,56553.0,56551.0,0.17594018]
[1726050415283,0.03119192,56553.0,56551.0,0.17594018]
[1726050415713,0.20801792,56553.0,56551.0,0.17594018]
[1726050415919,0.03119192,56553.0,56551.0,0.17594018]
[1726050416122,0.20801792,56553.0,56551.0,0.17594018]
[1726050417050,0.176828,56552.0,56551.0,0.17594018]
[1726050417297,0.95072,56547.0,56546.0,0.001636]
[1726050417548,1.658096,56547.0,56546.0,0.001636]
[1726050417760,2.01343618,56547.0,56546.0,0.001636]
[1726050417972,2.67719245,56547.0,56546.0,0.001636]
[1726050418425,2.67756025,56547.0,56546.0,0.001636]
[1726050418839,2.27107881,56547.0,56546.0,0.001636]
[1726050419044,2.09490926,56547.0,56546.0,0.001636]
[1726050419479,2.45059726,56547.0,56546.0,0.001636]
[1726050419959,2.09490926,56547.0,56546.0,0.001636]
[1726050420634,2.09690926,56547.0,56546.0,0.001636]
[1726050421117,2.09490926,56547.0,56546.0,0.001636]
[1726050421340,2.32587225,56547.0,56546.0,0.001636]
[1726050421574,2.27307881,56547.0,56546.0,0.001636]
[1726050421806,2.04454147,56536.0,56535.0,0.001636]
[1726050422034,1.091107,56535.0,56503.0,0.0787]
[1726050422267,0.176978,56504.0,56503.0,0.0777]
[1726050422481,0.176978,56504.0,56503.0,0.25364018]
[1726050422482,0.156978,56504.0,56503.0,0.25364018]
[1726050422695,0.353928,56509.0,56503.0,0.25364018]
[1726050422912,0.176978,56505.0,56504.0,0.17594018]
[1726050423142,0.0474,56512.0,56504.0,0.17594018]
[1726050423365,0.0474,56512.0,56499.0,0.0027418]
[1726050423366,0.530973,56500.0,56499.0,0.0027418]
[1726050423587,0.884955,56500.0,56499.0,0.0027418]
[1726050423818,1.030255,56500.0,56499.0,0.0027418]
[1726050424036,1.514237,56500.0,56499.0,0.0027418]
[1726050424266,1.80514997,56500.0,56499.0,0.0027418]
[1726050424779,1.80714997,56500.0,56499.0,0.0027418]
[1726050425011,2.16113197,56500.0,56499.0,0.0027418]
[1726050425241,1.514237,56500.0,56499.0,0.0027418]
[1726050425458,0.1,56500.0,56499.0,0.0027418]
[1726050425957,0.0277415,56500.0,56499.0,0.0027418]
[1726050426172,0.2047325,56500.0,56499.0,0.0027418]
[1726050426387,0.1277415,56500.0,56499.0,0.0027418]
[1726050427294,0.3047325,56500.0,56499.0,0.0027418]
[1726050427503,0.6587145,56500.0,56499.0,0.0027418]
[1726050427721,0.3047325,56500.0,56499.0,0.0027418]
[1726050427939,0.6587145,56500.0,56499.0,0.0027418]
[1726050428372,0.3047325,56500.0,56499.0,0.0027418]
[1726050428587,0.72458445,56500.0,56499.0,0.0027418]
[1726050428819,0.0277415,56500.0,56499.0,0.0027418]
[1726050429040,0.1447,56516.0,56499.0,0.45825945]
[1726050429258,0.02774024,56509.0,56500.0,0.53345939]
[1726050429482,0.02774024,56509.0,56500.0,0.26105726]
[1726050429716,0.02774024,56509.0,56500.0,0.17594018]
[1726050429717,0.176964,56509.0,56500.0,0.17594018]
[1726050429938,0.176957,56511.0,56501.0,0.353975]
[1726050430156,0.17697,56507.0,56501.0,0.35292618]
[1726050430372,0.17697,56507.0,56502.0,0.176984]
[1726050430829,0.1,56506.0,56503.0,0.176981]
[1726050431049,0.353898,56514.0,56505.0,0.176973]
[1726050431050,0.1,56507.0,56505.0,0.176973]
[1726050431271,0.353898,56514.0,56503.0,0.353962]
[1726050431496,0.176961,56510.0,56505.0,0.176973]
[1726050431721,0.1447,56516.0,56505.0,0.176973]
[1726050431722,0.0665,56516.0,56507.0,0.353936]
[1726050431941,0.428852,56521.0,56507.0,0.17594018]
[1726050431942,0.1376,56521.0,56507.0,0.17594018]
[1726050432241,0.1376,56521.0,56504.0,0.075]
[1726050432242,0.353895,56514.0,56504.0,0.075]
[1726050432453,0.01376,56520.0,56507.0,0.176968]
[1726050432454,0.176956,56512.0,56507.0,0.176968]
[1726050432683,0.176945,56515.0,56504.0,0.25094018]
[1726050432900,0.353882,56516.0,56509.0,0.176959]
[1726050432901,0.176947,56514.0,56509.0,0.176959]
[1726050433135,0.353866,56519.0,56508.0,0.00353892]
[1726050433356,0.09033501,56521.0,56510.0,0.353919]
[1726050433592,0.02773501,56521.0,56511.0,0.17947869]
[1726050433811,0.02773501,56521.0,56511.0,0.17594018]
[1726050434041,0.02773501,56521.0,56520.0,0.530785]
[1726050434286,0.02773501,56521.0,56520.0,0.176928]
[1726050434498,0.02773501,56521.0,56519.0,0.0779]
[1726050434741,0.176937,56518.0,56514.0,0.0779]
[1726050435003,0.453847,56522.0,56514.0,0.0779]
[1726050435229,0.176935,56518.0,56514.0,0.0779]
[1726050435475,0.1,56522.0,56514.0,0.0779]
[1726050435701,0.353823,56526.0,56521.0,0.176924]
[1726050435702,0.1,56525.0,56521.0,0.176924]
[1726050436194,0.1,56525.0,56517.0,0.419973]
[1726050436445,0.176908,56527.0,56522.0,0.17692]
[1726050436698,0.176922,56522.0,56518.0,0.17594018]
[1726050436926,0.1,56526.0,56518.0,0.17594018]
[1726050436927,0.353835,56524.0,56518.0,0.17594018]
[1726050437140,0.176927,56521.0,56518.0,0.17594018]
[1726050437406,0.0453835,56524.0,56511.0,0.420011]
[1726050437659,0.0453835,56524.0,56513.0,0.176948]
[1726050437660,0.176934,56519.0,56513.0,0.176948]
[1726050437883,0.02773056,56523.0,56513.0,0.17594018]
[1726050437884,0.176938,56517.0,56513.0,0.17594018]
[1726050438348,0.176932,56519.0,56513.0,0.17594018]
[1726050438599,0.176926,56521.0,56516.0,0.17694]
[1726050438825,0.0277316,56517.0,56516.0,0.17694]
[1726050439537,0.3816066,56517.0,56510.0,0.0812]
[1726050439825,0.353883,56516.0,56510.0,0.0812]
[1726050440061,0.2046716,56517.0,56512.0,0.176953]
[1726050440294,0.17694,56517.0,56512.0,0.176953]
[1726050440537,0.17694,56517.0,56513.0,0.176949]
[1726050440787,0.176927,56521.0,56515.0,0.353887]
[1726050441050,0.0797,56527.0,56517.0,0.176937]
[1726050441051,0.1,56524.0,56517.0,0.176937]
[1726050441290,0.1,56524.0,56515.0,0.353887]
[1726050441291,0.353833,56524.0,56516.0,0.35388]
[1726050441522,0.176923,56522.0,56515.0,0.353887]
[1726050441778,0.176941,56516.0,56515.0,0.0002602]
[1726050442009,1.55572718,56516.0,56515.0,0.0002602]
[1726050442245,2.16261375,56516.0,56515.0,0.0002602]
[1726050442499,2.87237775,56516.0,56515.0,0.0002602]
[1726050442729,2.93237775,56516.0,56515.0,0.0002602]
[1726050443454,2.93237775,56516.0,56504.0,0.001638]
[1726050443455,0.884875,56505.0,56504.0,0.001638]
[1726050443687,0.530925,56505.0,56504.0,0.001638]
[1726050443928,0.1,56505.0,56504.0,0.178616]
[1726050444191,0.176955,56512.0,56505.0,0.35395]
[1726050444430,0.1,56515.0,56507.0,0.176968]
[1726050444675,0.276944,56515.0,56510.0,0.176957]
[1726050444953,0.276944,56515.0,56508.0,0.353931]
[1726050444954,0.276944,56515.0,56509.0,0.353925]
[1726050445182,0.1,56515.0,56512.0,0.176952]
[1726050445419,0.02774121,56516.0,56507.0,0.17594018]
[1726050445654,0.176948,56514.0,56509.0,0.176961]
[1726050445877,0.176951,56513.0,56507.0,0.17594018]
[1726050446101,0.02774121,56516.0,56509.0,0.353922]
[1726050446338,0.02774121,56516.0,56508.0,0.176963]
[1726050446570,0.05820873,56516.0,56504.0,0.001638]
[1726050446826,0.176965,56509.0,56504.0,0.178614]
[1726050447050,0.176967,56508.0,56504.0,0.001638]
[1726050447305,0.176966,56509.0,56504.0,0.001638]
[1726050447569,0.20470384,56508.0,56504.0,0.178616]
[1726050448032,0.02773684,56508.0,56507.0,0.176969]
[1726050448255,0.02773684,56508.0,56507.0,0.70684718]
[1726050448483,0.276947,56514.0,56507.0,0.17594018]
[1726050448484,0.276948,56514.0,56507.0,0.17594018]
[1726050448729,0.1,56514.0,56507.0,0.17594018]
[1726050449013,0.38160113,56519.0,56512.0,0.353903]
[1726050449014,0.1,56518.0,56512.0,0.353903]
[1726050449267,0.1,56518.0,56515.0,0.176942]
[1726050449756,0.176938,56517.0,56512.0,0.176952]
[1726050450001,0.176935,56518.0,56511.0,0.353913]
[1726050450247,0.1,56521.0,56517.0,0.176937]
[1726050450248,0.276926,56521.0,56517.0,0.176937]
[1726050450478,0.276926,56521.0,56514.0,0.353894]
[1726050450717,0.276926,56521.0,56516.0,0.17694]
[1726050450953,0.1,56521.0,56517.0,0.176935]
[1726050451183,0.276926,56521.0,56517.0,0.176935]
[1726050451467,0.1,56521.0,56515.0,0.176943]
[1726050451733,0.176932,56519.0,56512.0,0.353904]
[1726050451955,0.1,56521.0,56519.0,0.176931]
[1726050452178,0.1,56524.0,56521.0,0.176924]
[1726050452426,0.0616,56532.0,56519.0,0.176931]
[1726050452685,0.353809,56528.0,56518.0,0.353866]
[1726050452923,0.176917,56524.0,56519.0,0.17693]
[1726050453367,0.176913,56525.0,56521.0,0.176924]
[1726050453601,0.176927,56521.0,56515.0,0.353882]
[1726050453822,0.176927,56521.0,56512.0,0.176952]
[1726050453823,0.176939,56517.0,56512.0,0.176952]
[1726050454040,0.0176927,56521.0,56509.0,0.70816247]
[1726050454041,0.0176927,56521.0,56509.0,0.43022]
[1726050454280,0.176934,56518.0,56513.0,0.17695]
[1726050454495,0.02773203,56516.0,56513.0,0.17695]
[1726050454931,0.02773203,56516.0,56514.0,0.176946]
[1726050455220,0.02773203,56516.0,56510.0,0.17594018]
[1726050455438,0.02773203,56516.0,56513.0,0.176949]
[1726050456991,0.02773203,56516.0,56515.0,0.176944]
[1726050457216,0.02773203,56516.0,56514.0,0.176947]
[1726050457444,0.02773203,56516.0,56512.0,0.353904]
[1726050457697,0.02773203,56516.0,56515.0,0.176944]
[1726050457926,0.02773203,56516.0,56515.0,1.33859965]
[1726050458371,0.176923,56522.0,56517.0,0.176936]
[1726050458590,0.176923,56522.0,56518.0,0.176933]
[1726050458818,0.353792,56531.0,56521.0,0.35385]
[1726050458819,0.02773094,56528.0,56521.0,0.35385]
[1726050459111,0.02773094,56528.0,56523.0,0.353833]
[1726050459343,0.0616,56532.0,56524.0,0.353829]
[1726050459582,0.0616,56532.0,56523.0,0.353833]
[1726050459810,0.176899,56530.0,56524.0,0.35383]
[1726050460035,0.0616,56532.0,56523.0,0.353833]
[1726050460262,0.176902,56529.0,56524.0,0.176915]
[1726050460491,0.176902,56529.0,56525.0,0.176912]
[1726050460727,0.276891,56532.0,56526.0,0.353818]
[1726050460942,0.1,56532.0,56529.0,0.1769]
[1726050461180,0.1,56532.0,56526.0,0.353818]
[1726050461416,0.0003678,56535.0,56529.0,0.176899]
[1726050461682,0.1,56534.0,56528.0,0.353805]
[1726050461895,0.1,56534.0,56529.0,0.176899]
[1726050461896,0.176886,56534.0,56529.0,0.176899]
[1726050462116,0.1,56533.0,56528.0,0.52974518]
[1726050462348,0.1,56533.0,56530.0,0.176894]
[1726050462569,0.1,56533.0,56531.0,0.176894]
[1726050462782,0.0003678,56535.0,56528.0,0.17594018]
[1726050463054,0.0003678,56535.0,56534.0,0.530653]
[1726050463276,0.0003678,56535.0,56529.0,0.45741722]
[1726050463277,0.1772498,56535.0,56529.0,0.45387965]
[1726050463495,0.0003678,56535.0,56529.0,0.52973918]
[1726050463711,0.176894,56531.0,56525.0,0.353823]
[1726050463928,0.0003678,56535.0,56528.0,0.353804]
[1726050464144,0.0003678,56535.0,56529.0,0.17594018]
[1726050464384,0.0003678,56535.0,56533.0,0.176886]
[1726050464600,0.02772353,56534.0,56533.0,0.176886]
[1726050465759,0.02772353,56534.0,56533.0,0.25704018]
[1726050465990,0.02772353,56534.0,56533.0,0.17594018]
[1726050466232,0.02772353,56534.0,56533.0,0.70660218]
[1726050466453,0.02772353,56534.0,56527.0,0.434909]
[1726050466454,0.02772353,56534.0,56527.0,0.0811]
[1726050466681,0.02772353,56534.0,56528.0,0.353806]
[1726050466682,0.04400082,56534.0,56528.0,0.353806]
[1726050466915,0.01627729,56533.0,56532.0,0.176889]
[1726050467634,0.01627729,56533.0,56532.0,0.53067]
[1726050467860,0.04541911,56533.0,56532.0,0.176889]
[1726050468736,0.04541911,56533.0,56525.0,0.27793947]
[1726050468737,0.353783,56532.0,56522.0,0.0784]
[1726050468977,0.353783,56532.0,56522.0,0.17594018]
[1726050468978,0.176914,56525.0,56522.0,0.17594018]
[1726050469194,0.04541911,56524.0,56522.0,0.17594018]
[1726050469414,0.04541911,56523.0,56522.0,0.17594018]
[1726050469627,0.01627729,56523.0,56522.0,0.35286218]
[1726050469842,0.02914182,56524.0,56523.0,0.176919]
[1726050469843,0.02772724,56524.0,56523.0,0.176919]
[1726050470057,0.046049,56524.0,56522.0,0.17594018]
[1726050470278,0.04763658,56523.0,56522.0,0.17594018]
[1726050470489,0.04763658,56523.0,56522.0,0.35286218]
[1726050470888,0.04763658,56523.0,56521.0,0.353849]
[1726050470889,0.04763658,56523.0,56521.0,0.176924]
[1726050471101,0.176907,56527.0,56522.0,0.353844]
[1726050471319,0.04760991,56526.0,56523.0,0.176918]
[1726050471552,0.04760991,56525.0,56524.0,0.176916]
[1726050471764,0.02935119,56528.0,56527.0,0.176906]
[1726050471994,0.04769654,56528.0,56527.0,0.176906]
[1726050472428,0.04769654,56528.0,56525.0,0.176912]
[1726050472643,0.04769654,56527.0,56525.0,0.176912]
[1726050472856,0.04769654,56526.0,56525.0,0.176912]
[1726050473071,0.04771908,56528.0,56524.0,0.353825]
[1726050473299,0.04771934,56527.0,56526.0,0.176909]
[1726050474432,0.04771934,56527.0,56525.0,0.17691]
[1726050474698,0.0277261,56527.0,56525.0,0.17691]
[1726050474916,0.01826204,56526.0,56525.0,0.530735]
[1726050475138,0.0474813,56526.0,56525.0,1.07960806]
[1726050475369,0.01826204,56526.0,56525.0,1.21030018]
[1726050476511,0.01826204,56526.0,56525.0,0.85647518]
[1726050476730,0.01826204,56526.0,56525.0,1.21030018]
[1726050476943,0.01826204,56526.0,56525.0,1.14370018]
[1726050477628,0.01826204,56526.0,56525.0,0.70667518]
[1726050477846,0.04759233,56526.0,56525.0,0.70667518]
[1726050479209,0.04759233,56526.0,56525.0,1.06050018]
[1726050479430,0.04759233,56526.0,56525.0,0.70667518]
[1726050479639,0.01826204,56526.0,56525.0,0.70667518]
[1726050479895,0.01826204,56526.0,56525.0,1.06050018]
[1726050480114,0.20614482,56533.0,56529.0,0.1769]
[1726050480330,0.22443206,56532.0,56529.0,0.1769]
[1726050480560,0.04754106,56531.0,56529.0,0.1769]
[1726050480776,0.01828501,56530.0,56528.0,0.176903]
[1726050480995,0.01828501,56530.0,56526.0,0.176907]
[1726050480996,0.01828501,56529.0,56526.0,0.176907]
[1726050481213,0.04754106,56528.0,56527.0,0.176905]
[1726050481429,0.04754106,56528.0,56525.0,0.52976518]
[1726050481430,0.04754106,56528.0,56525.0,0.17594018]
[1726050481646,0.04755892,56527.0,56525.0,0.35285218]
[1726050481864,0.04755892,56526.0,56521.0,0.176922]
[1726050482075,0.42744509,56532.0,56520.0,0.55612513]
[1726050482076,0.04755892,56525.0,56524.0,0.176915]
[1726050482805,0.04755892,56525.0,56516.0,0.001634]
[1726050482806,1.061499,56524.0,56516.0,0.001634]
[1726050483039,0.596012,56517.0,56516.0,0.001634]
[1726050483264,1.91307718,56517.0,56516.0,0.001634]
[1726050483483,1.70485007,56517.0,56516.0,0.001634]
[1726050483706,1.73566179,56517.0,56516.0,0.001634]
[1726050483925,1.70650773,56517.0,56516.0,0.001634]
[1726050484138,1.78633578,56517.0,56516.0,0.001634]
[1726050484362,2.15129432,56517.0,56516.0,0.001634]
[1726050484586,1.79741932,56517.0,56516.0,0.001634]
[1726050484805,1.71759127,56517.0,56516.0,0.001634]
[1726050485666,1.10827609,56517.0,56516.0,0.001634]
[1726050485887,0.75440109,56517.0,56516.0,0.001634]
[1726050486850,1.10827609,56517.0,56516.0,0.001634]
[1726050487310,1.46215109,56517.0,56516.0,0.001634]
[1726050488209,1.71329127,56517.0,56516.0,0.001634]
[1726050488639,1.88946082,56517.0,56516.0,0.001634]
[1726050489739,1.83107173,56517.0,56516.0,0.001634]
[1726050490002,2.24453622,56517.0,56516.0,0.001634]
[1726050490466,2.24453622,56517.0,56504.0,0.001638]
[1726050490467,1.66270364,56505.0,56504.0,0.001638]
[1726050490690,2.3691561,56505.0,56504.0,0.001638]
[1726050490921,1.46461449,56505.0,56504.0,0.001638]
[1726050491357,1.49201693,56505.0,56504.0,0.001638]
[1726050491579,1.46461449,56505.0,56504.0,0.001638]
[1726050492429,1.49201683,56505.0,56504.0,0.001638]
[1726050493096,1.49206695,56505.0,56504.0,0.001638]
[1726050493307,1.51980944,56505.0,56504.0,0.001638]
[1726050493518,1.43276726,56505.0,56504.0,0.001638]
[1726050493777,1.51980969,56505.0,56504.0,0.001638]
[1726050493992,1.13845721,56505.0,56504.0,0.001638]
[1726050494244,0.78450721,56505.0,56504.0,0.001638]
[1726050494461,0.70722153,56505.0,56504.0,0.001638]
[1726050494687,0.17629653,56505.0,56504.0,0.001638]
[1726050494920,0.07629653,56505.0,56504.0,0.001638]
[1726050495161,0.22339198,56505.0,56504.0,0.001638]
[1726050495622,0.04641698,56505.0,56504.0,0.001638]
[1726050495852,0.04641698,56505.0,56504.0,0.35455618]
[1726050496088,0.04641698,56505.0,56504.0,0.17757818]
[1726050496555,0.04641698,56505.0,56504.0,0.35455618]
[1726050497219,0.22339198,56505.0,56504.0,0.001638]
[1726050497446,0.04641698,56505.0,56504.0,0.001638]
[1726050497704,0.04641698,56505.0,56504.0,0.178616]
[1726050497920,0.02774226,56505.0,56504.0,0.001638]
[1726050498146,0.02774226,56505.0,56504.0,0.532573]
[1726050498357,0.176938,56517.0,56512.0,0.176951]
[1726050498577,0.04866099,56516.0,56515.0,0.176944]
[1726050498785,0.04866099,56516.0,56513.0,0.35977864]
[1726050498786,0.01871576,56516.0,56513.0,0.0814]
[1726050498998,0.01871576,56515.0,56513.0,0.0814]
[1726050499209,0.01871576,56514.0,56513.0,0.0814]
[1726050499426,0.01871576,56515.0,56513.0,0.0814]
[1726050499643,0.01871576,56515.0,56513.0,0.25835]
[1726050499858,0.01871576,56514.0,56513.0,0.25835]
[1726050500560,0.01871576,56516.0,56513.0,0.25835]
[1726050500773,0.0487927,56516.0,56513.0,0.25835]
[1726050501232,0.01871576,56515.0,56514.0,0.176946]
[1726050501496,0.01871576,56515.0,56513.0,0.0814]
[1726050501716,0.353853,56521.0,56513.0,0.0814]
[1726050501927,0.14869888,56520.0,56513.0,0.435299]
[1726050502138,0.22563188,56519.0,56514.0,0.176945]
[1726050502352,0.04869888,56518.0,56513.0,0.435299]
[1726050502563,0.04869888,56517.0,56513.0,0.435299]
[1726050502768,0.0187314,56516.0,56515.0,0.176944]
[1726050503008,0.0187314,56516.0,56513.0,0.435299]
[1726050503009,0.276929,56520.0,56516.0,0.176939]
[1726050503253,0.276929,56520.0,56514.0,0.353891]
[1726050503254,0.01865427,56516.0,56515.0,1.06066018]
[1726050503522,0.02822979,56525.0,56515.0,1.06066018]
[1726050503523,0.02985242,56519.0,56518.0,0.530803]
[1726050503766,0.02985242,56519.0,56518.0,1.238541]
[1726050503999,0.000817,56525.0,56524.0,0.530748]
[1726050504239,0.000817,56525.0,56524.0,0.88458]
[1726050504492,0.01948846,56525.0,56524.0,0.530748]
[1726050504709,0.01948846,56525.0,56524.0,0.607048]
[1726050505941,0.0285447,56525.0,56524.0,0.607048]
[1726050506189,0.0285447,56525.0,56524.0,0.96088]
[1726050506447,0.0021474,56559.0,56539.0,0.0844]
[1726050506691,0.0024723,56564.0,56539.0,0.0844]
[1726050506692,0.0024723,56564.0,56558.0,0.03]
[1726050506954,0.000817,56582.0,56572.0,1.377058]
[1726050507235,0.000817,56582.0,56572.0,2.10993162]
[1726050507469,0.000817,56582.0,56579.0,0.176744]
[1726050507692,0.0646474,56581.0,56572.0,0.0477]
[1726050507921,0.0646474,56581.0,56572.0,0.224464]
[1726050508137,0.0646474,56581.0,56572.0,0.0477]
[1726050508580,0.0646474,56581.0,56574.0,0.176758]
[1726050508794,0.0646474,56581.0,56572.0,0.0477]
[1726050509019,0.0646474,56581.0,56554.0,0.102]
[1726050509020,0.0776,56578.0,56555.0,0.63128999]
[1726050509285,0.0776,56578.0,56559.0,0.176805]
[1726050509286,0.176756,56575.0,56559.0,0.176805]
[1726050509514,0.176756,56575.0,56556.0,0.77333436]
[1726050509515,0.17594018,56574.0,56557.0,0.353622]
[1726050509726,0.1,56573.0,56559.0,0.27765399]
[1726050509976,0.176753,56576.0,56561.0,0.176797]
[1726050510187,0.1,56575.0,56562.0,0.176796]
[1726050510603,0.1,56575.0,56560.0,0.353605]
[1726050510822,0.1,56575.0,56559.0,0.353612]
[1726050511034,0.13535402,56575.0,56563.0,0.176792]
[1726050511259,0.13535402,56575.0,56564.0,0.176789]
[1726050511468,0.13535402,56575.0,56565.0,0.176787]
[1726050511892,0.13535402,56575.0,56563.0,0.176792]
[1726050512102,0.13535402,56575.0,56565.0,0.176786]
[1726050512310,0.13535402,56575.0,56560.0,0.353606]
[1726050512515,0.13535402,56575.0,56566.0,0.176784]
[1726050512516,0.1,56575.0,56566.0,0.176784]
[1726050513385,0.1,56575.0,56567.0,0.176781]
[1726050513570,0.1,56575.0,56564.0,0.353577]
[1726050513786,0.1,56575.0,56568.0,0.176775]
[1726050514818,0.1,56575.0,56569.0,0.176774]
[1726050516044,0.000817,56580.0,56569.0,0.176774]
[1726050516045,0.000817,56580.0,56570.0,0.25714018]
[1726050516293,0.000817,56580.0,56579.0,0.88372]
[1726050516570,0.000817,56580.0,56568.0,0.27765399]
[1726050516571,0.05523274,56579.0,56563.0,0.0812]
[1726050517035,0.000817,56580.0,56571.0,0.176768]
[1726050517036,0.176747,56578.0,56571.0,0.176767]
[1726050517334,0.000817,56580.0,56574.0,0.41985399]
[1726050517589,0.000817,56580.0,56579.0,0.530232]
[1726050518119,0.000817,56580.0,56579.0,0.88372]
[1726050518603,0.000817,56580.0,56574.0,0.41985399]
[1726050518604,0.000817,56580.0,56578.0,0.176745]
[1726050518844,0.000817,56580.0,56574.0,0.0812]
[1726050519084,0.000817,56580.0,56577.0,0.176749]